[Event "Late-Titled-Tuesday-Blitz-October-03-2023"]
[Site "Chess.com"]
[Date "2023.10.03"]
[Round "11"]
[White "jinxy2009"]
[Black "C_K_G"]
[Result "1-0"]
[WhiteElo "2260"]
[BlackElo "1928"]
[TimeControl "180+1"]
[EndTime "16:00:42 PDT"]
[Termination "jinxy2009 won on time"]

1. e4 {[%clk 0:03:00.9]} 1... c5 {[%clk 0:02:58.9]} 2. Nf3 {[%clk 0:03:00.4]}
2... d6 {[%clk 0:02:58.3]} 3. d4 {[%clk 0:03:00.9]} 3... cxd4 {[%clk 0:02:58.5]}
4. Nxd4 {[%clk 0:03:01.8]} 4... Nf6 {[%clk 0:02:58.7]} 5. Nc3 {[%clk 0:03:02.3]}
5... a6 {[%clk 0:02:59]} 6. Be3 {[%clk 0:03:00.6]} 6... e5 {[%clk 0:02:59.4]} 7.
Nb3 {[%clk 0:03:00.3]} 7... Be6 {[%clk 0:02:59.4]} 8. f3 {[%clk 0:03:00.4]} 8...
Be7 {[%clk 0:02:54.5]} 9. Qd2 {[%clk 0:03:00.4]} 9... Nbd7 {[%clk 0:02:53.6]}
10. O-O-O {[%clk 0:02:59.9]} 10... b5 {[%clk 0:02:52.6]} 11. Nd5 {[%clk
0:02:51.6]} 11... Nxd5 {[%clk 0:02:50.5]} 12. exd5 {[%clk 0:02:52.5]} 12... Bf5
{[%clk 0:02:48.2]} 13. Na5 {[%clk 0:02:52.7]} 13... Qc7 {[%clk 0:02:26.2]} 14.
Nc6 {[%clk 0:02:48.2]} 14... h5 {[%clk 0:01:50.9]} 15. Bd3 {[%clk 0:02:42]}
15... Bxd3 {[%clk 0:01:47]} 16. Qxd3 {[%clk 0:02:42.9]} 16... Bf6 {[%clk
0:01:43.4]} 17. g4 {[%clk 0:02:26.4]} 17... hxg4 {[%clk 0:01:32.8]} 18. fxg4
{[%clk 0:02:24.7]} 18... Nb6 {[%clk 0:01:24.1]} 19. g5 {[%clk 0:02:23.6]} 19...
Bd8 {[%clk 0:01:20.7]} 20. g6 {[%clk 0:02:19.5]} 20... f6 {[%clk 0:01:18.6]} 21.
Qf5 {[%clk 0:02:14.1]} 21... Qd7 {[%clk 0:00:53.1]} 22. Qe6+ {[%clk 0:01:54.9]}
22... Qxe6 {[%clk 0:00:37.7]} 23. dxe6 {[%clk 0:01:55.8]} 23... Nc4 {[%clk
0:00:37.4]} 24. Bf2 {[%clk 0:01:55.2]} 24... Rc8 {[%clk 0:00:30.2]} 25. Nb4
{[%clk 0:01:55.2]} 25... Rh6 {[%clk 0:00:18.3]} 26. b3 {[%clk 0:01:55.1]} 26...
Na5 {[%clk 0:00:14.5]} 27. Rxd6 {[%clk 0:01:54.7]} 27... Rxg6 {[%clk 0:00:12.5]}
28. Rxa6 {[%clk 0:01:54.2]} 28... Rg2 {[%clk 0:00:10.5]} 29. Bb6 {[%clk
0:01:49.6]} 29... Bxb6 {[%clk 0:00:08.9]} 30. Rxb6 {[%clk 0:01:50.5]} 30... Ke7
{[%clk 0:00:05.9]} 31. Nd5+ {[%clk 0:01:50.2]} 31... Ke8 {[%clk 0:00:04.7]} 32.
Ne3 {[%clk 0:01:44.6]} 32... Re2 {[%clk 0:00:03.8]} 33. Rxb5 {[%clk 0:01:44.8]}
33... Nc6 {[%clk 0:00:02.8]} 34. Nc4 {[%clk 0:01:38.1]} 34... Nd4 {[%clk
0:00:02.6]} 35. Nd6+ {[%clk 0:01:38.3]} 35... Kd8 {[%clk 0:00:01.6]} 36. e7+
{[%clk 0:01:36.3]} 36... Kxe7 {[%clk 0:00:01.9]} 37. Nxc8+ {[%clk 0:01:36.5]}
37... Ke6 {[%clk 0:00:02]} 38. Rb6+ {[%clk 0:01:36]} 38... Kf5 {[%clk
0:00:01.7]} 39. Nd6+ {[%clk 0:01:35.7]} 39... Kf4 {[%clk 0:00:01.7]} 40. c4
{[%clk 0:01:35.2]} 1-0

[Event "Late-Titled-Tuesday-Blitz-October-03-2023"]
[Site "Chess.com"]
[Date "2023.10.03"]
[Round "11"]
[White "RIPOL"]
[Black "The_Straightforward_Rook"]
[Result "1-0"]
[WhiteElo "2460"]
[BlackElo "2549"]
[TimeControl "180+1"]
[EndTime "16:00:43 PDT"]
[Termination "RIPOL won by resignation"]

1. d4 {[%clk 0:02:59.8]} 1... Nf6 {[%clk 0:02:59.7]} 2. Bg5 {[%clk 0:02:59.1]}
2... d5 {[%clk 0:02:59.1]} 3. Bxf6 {[%clk 0:02:58.3]} 3... gxf6 {[%clk 0:03:00]}
4. c4 {[%clk 0:02:56.7]} 4... e5 {[%clk 0:02:51.7]} 5. cxd5 {[%clk 0:02:54.4]}
5... Qxd5 {[%clk 0:02:49.4]} 6. Nc3 {[%clk 0:02:51.7]} 6... Bb4 {[%clk
0:02:49.9]} 7. Qa4+ {[%clk 0:02:49.4]} 7... Nc6 {[%clk 0:02:48.6]} 8. Qxb4
{[%clk 0:02:48.9]} 8... Nxb4 {[%clk 0:02:47.9]} 9. Nxd5 {[%clk 0:02:48.5]} 9...
Nxd5 {[%clk 0:02:48.6]} 10. O-O-O {[%clk 0:02:47.9]} 10... e4 {[%clk 0:02:42.3]}
11. e3 {[%clk 0:02:42.3]} 11... c6 {[%clk 0:02:34.3]} 12. Ne2 {[%clk 0:02:38.2]}
12... Rg8 {[%clk 0:02:32.1]} 13. Nc3 {[%clk 0:02:35.3]} 13... f5 {[%clk
0:02:25.3]} 14. Nxd5 {[%clk 0:02:32.7]} 14... cxd5 {[%clk 0:02:26.2]} 15. g3
{[%clk 0:02:28]} 15... Bd7 {[%clk 0:02:26.4]} 16. Kd2 {[%clk 0:02:25.3]} 16...
Rc8 {[%clk 0:02:25.5]} 17. Be2 {[%clk 0:02:21.9]} 17... Ke7 {[%clk 0:02:25.1]}
18. Rc1 {[%clk 0:02:21.2]} 18... Rg6 {[%clk 0:02:12.5]} 19. Rxc8 {[%clk
0:02:17.2]} 19... Bxc8 {[%clk 0:02:13.4]} 20. Rc1 {[%clk 0:02:16.2]} 20... Rc6
{[%clk 0:02:13.3]} 21. Rxc6 {[%clk 0:01:56.7]} 21... bxc6 {[%clk 0:02:14.2]} 22.
Kc3 {[%clk 0:01:56.4]} 22... Kd6 {[%clk 0:02:02.9]} 23. Kb4 {[%clk 0:01:47.8]}
23... h6 {[%clk 0:01:55]} 24. Bh5 {[%clk 0:01:38.3]} 24... f6 {[%clk 0:01:48.9]}
25. Bg6 {[%clk 0:01:31.3]} 25... Bd7 {[%clk 0:01:46.7]} 26. Bh5 {[%clk
0:01:06.4]} 26... Bc8 {[%clk 0:01:41.7]} 27. Be2 {[%clk 0:01:06.5]} 27... Bd7
{[%clk 0:01:35.7]} 28. Ka5 {[%clk 0:01:05.3]} 28... Bc8 {[%clk 0:01:35]} 29. b4
{[%clk 0:01:03.4]} 29... Kc7 {[%clk 0:01:33.2]} 30. b5 {[%clk 0:00:59.9]} 30...
Bb7 {[%clk 0:01:26.1]} 31. a4 {[%clk 0:00:57.5]} 31... Kd6 {[%clk 0:01:25]} 32.
b6 {[%clk 0:00:53.6]} 32... c5 {[%clk 0:01:12.9]} 33. dxc5+ {[%clk 0:00:29.1]}
33... Kxc5 {[%clk 0:01:13.8]} 34. bxa7 {[%clk 0:00:28.3]} 34... d4 {[%clk
0:01:11.7]} 35. exd4+ {[%clk 0:00:25]} 35... Kxd4 {[%clk 0:01:12.6]} 36. Kb6
{[%clk 0:00:23.8]} 36... Bd5 {[%clk 0:01:10.3]} 37. Ba6 {[%clk 0:00:21.2]} 37...
e3 {[%clk 0:01:05]} 38. fxe3+ {[%clk 0:00:20.2]} 38... Kxe3 {[%clk 0:01:05.9]}
39. Bb7 {[%clk 0:00:20]} 1-0

[Event "Late-Titled-Tuesday-Blitz-October-03-2023"]
[Site "Chess.com"]
[Date "2023.10.03"]
[Round "11"]
[White "UK_23"]
[Black "K_alena13"]
[Result "1-0"]
[WhiteElo "2383"]
[BlackElo "2137"]
[TimeControl "180+1"]
[EndTime "16:00:43 PDT"]
[Termination "UK_23 won on time"]

1. e4 {[%clk 0:03:00.9]} 1... e5 {[%clk 0:02:59.4]} 2. Nf3 {[%clk 0:03:00.3]}
2... Nc6 {[%clk 0:02:59.9]} 3. Bc4 {[%clk 0:03:00.2]} 3... Nf6 {[%clk
0:02:59.8]} 4. d3 {[%clk 0:02:59.8]} 4... Be7 {[%clk 0:02:59.4]} 5. O-O {[%clk
0:03:00.2]} 5... O-O {[%clk 0:02:59.4]} 6. Re1 {[%clk 0:03:00.8]} 6... d6 {[%clk
0:02:59.6]} 7. a3 {[%clk 0:03:00.5]} 7... a6 {[%clk 0:02:59]} 8. Nc3 {[%clk
0:03:00.8]} 8... b5 {[%clk 0:02:51.6]} 9. Ba2 {[%clk 0:02:59.9]} 9... Be6 {[%clk
0:02:51.5]} 10. Nd5 {[%clk 0:02:57.9]} 10... Bxd5 {[%clk 0:02:45.8]} 11. exd5
{[%clk 0:02:58.8]} 11... Nb8 {[%clk 0:02:46.2]} 12. b4 {[%clk 0:02:54.1]} 12...
Nbd7 {[%clk 0:02:45.6]} 13. c4 {[%clk 0:02:54.1]} 13... Re8 {[%clk 0:02:38.3]}
14. Bb2 {[%clk 0:02:53.1]} 14... Bf8 {[%clk 0:02:34.9]} 15. a4 {[%clk
0:02:47.9]} 15... Nb6 {[%clk 0:02:07.8]} 16. a5 {[%clk 0:02:42.1]} 16... Na4
{[%clk 0:01:58.1]} 17. Qb3 {[%clk 0:02:36.7]} 17... Nxb2 {[%clk 0:01:55.6]} 18.
Qxb2 {[%clk 0:02:37.6]} 18... Qd7 {[%clk 0:01:37.8]} 19. h3 {[%clk 0:02:31.6]}
19... g6 {[%clk 0:01:37]} 20. Rac1 {[%clk 0:02:25.8]} 20... Reb8 {[%clk
0:01:18.8]} 21. Qc3 {[%clk 0:02:15]} 21... Bg7 {[%clk 0:01:11.1]} 22. Rb1 {[%clk
0:02:09.4]} 22... bxc4 {[%clk 0:01:02.7]} 23. dxc4 {[%clk 0:02:09.4]} 23... e4
{[%clk 0:00:51.7]} 24. Nd4 {[%clk 0:02:08.8]} 24... Re8 {[%clk 0:00:50.1]} 25.
Rbd1 {[%clk 0:02:05.2]} 25... Nh5 {[%clk 0:00:46.5]} 26. Qe3 {[%clk 0:02:01.1]}
26... f5 {[%clk 0:00:41]} 27. Ne6 {[%clk 0:01:56.7]} 27... Be5 {[%clk 0:00:39]}
28. f4 {[%clk 0:01:51.5]} 28... exf3 {[%clk 0:00:29.4]} 29. Qxf3 {[%clk
0:01:51]} 29... Ng7 {[%clk 0:00:18.5]} 30. c5 {[%clk 0:01:45.7]} 30... Qe7
{[%clk 0:00:14.8]} 31. Rxe5 {[%clk 0:01:34.8]} 31... dxe5 {[%clk 0:00:10.2]} 32.
d6 {[%clk 0:01:35.7]} 32... Qf7 {[%clk 0:00:07.2]} 33. Nxc7 {[%clk 0:01:32.8]}
33... Qxa2 {[%clk 0:00:06.7]} 34. Nxa8 {[%clk 0:01:33.4]} 34... Qc2 {[%clk
0:00:04.6]} 35. Qd5+ {[%clk 0:01:32.3]} 35... Kh8 {[%clk 0:00:03]} 36. d7 {[%clk
0:01:32.9]} 36... Rd8 {[%clk 0:00:02.9]} 37. c6 {[%clk 0:01:32.2]} 37... Qe2
{[%clk 0:00:01.7]} 38. c7 {[%clk 0:01:27.5]} 38... Qe3+ {[%clk 0:00:01.9]} 39.
Kh1 {[%clk 0:01:27.7]} 39... Rf8 {[%clk 0:00:01.7]} 40. d8=Q {[%clk 0:01:27.2]}
1-0

[Event "Late-Titled-Tuesday-Blitz-October-03-2023"]
[Site "Chess.com"]
[Date "2023.10.03"]
[Round "11"]
[White "Djager97"]
[Black "wild3000"]
[Result "1/2-1/2"]
[WhiteElo "2543"]
[BlackElo "2436"]
[TimeControl "180+1"]
[EndTime "16:00:48 PDT"]
[Termination "Game drawn by stalemate"]

1. e4 {[%clk 0:03:00.9]} 1... a6 {[%clk 0:02:55.6]} 2. d4 {[%clk 0:03:00.6]}
2... e6 {[%clk 0:02:55.3]} 3. Nf3 {[%clk 0:03:00.6]} 3... d5 {[%clk 0:02:53.3]}
4. exd5 {[%clk 0:02:58.8]} 4... exd5 {[%clk 0:02:52.7]} 5. Bd3 {[%clk
0:02:58.9]} 5... Nf6 {[%clk 0:02:52.6]} 6. O-O {[%clk 0:02:57.2]} 6... Be7
{[%clk 0:02:52.7]} 7. Bg5 {[%clk 0:02:55.2]} 7... O-O {[%clk 0:02:51.3]} 8. h3
{[%clk 0:02:54.3]} 8... c5 {[%clk 0:02:46.3]} 9. dxc5 {[%clk 0:02:52.6]} 9...
Bxc5 {[%clk 0:02:47.2]} 10. Nc3 {[%clk 0:02:52.4]} 10... Be6 {[%clk 0:02:46.4]}
11. Qd2 {[%clk 0:02:38.2]} 11... Nc6 {[%clk 0:02:45]} 12. Rad1 {[%clk
0:02:38.2]} 12... Nb4 {[%clk 0:02:35.6]} 13. Qf4 {[%clk 0:02:33.5]} 13... Nxd3
{[%clk 0:02:33.9]} 14. Rxd3 {[%clk 0:02:34.4]} 14... Be7 {[%clk 0:02:34.1]} 15.
Rfd1 {[%clk 0:02:31.4]} 15... h6 {[%clk 0:02:31.2]} 16. Bxf6 {[%clk 0:02:31.2]}
16... Bxf6 {[%clk 0:02:31.8]} 17. Nxd5 {[%clk 0:02:31.6]} 17... Bxd5 {[%clk
0:02:31.4]} 18. Rxd5 {[%clk 0:02:32.5]} 18... Qe7 {[%clk 0:02:17.7]} 19. b3
{[%clk 0:02:30.3]} 19... Qa3 {[%clk 0:02:12.7]} 20. c4 {[%clk 0:02:03.6]} 20...
Qxa2 {[%clk 0:02:10]} 21. R1d3 {[%clk 0:02:04.2]} 21... a5 {[%clk 0:02:01.7]}
22. Rd6 {[%clk 0:01:42]} 22... a4 {[%clk 0:01:54.8]} 23. Rxf6 {[%clk 0:01:37.8]}
23... Qa1+ {[%clk 0:01:54.6]} 24. Kh2 {[%clk 0:01:33.7]} 24... Qxf6 {[%clk
0:01:55.5]} 25. Qxf6 {[%clk 0:01:32.9]} 25... gxf6 {[%clk 0:01:56.4]} 26. bxa4
{[%clk 0:01:33.8]} 26... Rxa4 {[%clk 0:01:55.5]} 27. Rb3 {[%clk 0:01:29.7]}
27... Rb8 {[%clk 0:01:48.1]} 28. Nd2 {[%clk 0:01:29.5]} 28... Ra2 {[%clk
0:01:44.9]} 29. Ne4 {[%clk 0:01:24.6]} 29... f5 {[%clk 0:01:37.8]} 30. Nf6+
{[%clk 0:01:22.9]} 30... Kg7 {[%clk 0:01:36]} 31. Nd7 {[%clk 0:01:22.9]} 31...
Rc8 {[%clk 0:01:28.3]} 32. Rxb7 {[%clk 0:01:18.6]} 32... Rxc4 {[%clk 0:01:17.3]}
33. Ne5 {[%clk 0:01:18.3]} 33... Rcc2 {[%clk 0:01:06.9]} 34. Rxf7+ {[%clk
0:01:14.3]} 34... Kg8 {[%clk 0:01:07]} 35. Rxf5 {[%clk 0:01:01.2]} 35... Rxf2
{[%clk 0:01:06.5]} 36. Rxf2 {[%clk 0:01:00.6]} 36... Rxf2 {[%clk 0:01:07.4]} 37.
Ng4 {[%clk 0:01:01.2]} 37... Ra2 {[%clk 0:01:03.2]} 38. Nxh6+ {[%clk 0:01:00.8]}
38... Kg7 {[%clk 0:01:03.7]} 39. Ng4 {[%clk 0:00:55.2]} 39... Kg6 {[%clk
0:01:03.4]} 40. Kg3 {[%clk 0:00:50.6]} 40... Ra3+ {[%clk 0:00:59.1]} 41. Kh4
{[%clk 0:00:50]} 41... Ra4 {[%clk 0:00:59.3]} 42. g3 {[%clk 0:00:48.1]} 42...
Rb4 {[%clk 0:00:45]} 1/2-1/2

[Event "Late-Titled-Tuesday-Blitz-October-03-2023"]
[Site "Chess.com"]
[Date "2023.10.03"]
[Round "11"]
[White "chosenpr"]
[Black "PapaieDudu"]
[Result "0-1"]
[WhiteElo "2254"]
[BlackElo "2391"]
[TimeControl "180+1"]
[EndTime "16:01:00 PDT"]
[Termination "PapaieDudu won by checkmate"]

1. e4 {[%clk 0:03:00.9]} 1... c5 {[%clk 0:03:00]} 2. Nf3 {[%clk 0:02:55.8]} 2...
d6 {[%clk 0:03:00.3]} 3. c3 {[%clk 0:02:53.5]} 3... Nf6 {[%clk 0:02:59.6]} 4.
Bd3 {[%clk 0:02:53.6]} 4... Nc6 {[%clk 0:02:59.6]} 5. h3 {[%clk 0:02:53.2]} 5...
e6 {[%clk 0:02:59.8]} 6. Bc2 {[%clk 0:02:51.6]} 6... d5 {[%clk 0:03:00.5]} 7.
exd5 {[%clk 0:02:49.4]} 7... Nxd5 {[%clk 0:02:55.9]} 8. d4 {[%clk 0:02:48.9]}
8... cxd4 {[%clk 0:02:56]} 9. cxd4 {[%clk 0:02:48.3]} 9... Be7 {[%clk
0:02:56.3]} 10. O-O {[%clk 0:02:47.6]} 10... O-O {[%clk 0:02:56.4]} 11. a3
{[%clk 0:02:48]} 11... Bd7 {[%clk 0:02:53.5]} 12. Nbd2 {[%clk 0:02:45.4]} 12...
Rc8 {[%clk 0:02:52.8]} 13. Nc4 {[%clk 0:02:38.1]} 13... b5 {[%clk 0:02:48.2]}
14. Nce5 {[%clk 0:02:36.9]} 14... Be8 {[%clk 0:02:45.4]} 15. Bd2 {[%clk
0:02:34.4]} 15... b4 {[%clk 0:02:41.7]} 16. axb4 {[%clk 0:02:31.7]} 16... Ncxb4
{[%clk 0:02:41]} 17. Bb3 {[%clk 0:02:25.8]} 17... Bb5 {[%clk 0:02:41.3]} 18. Re1
{[%clk 0:02:22.9]} 18... f6 {[%clk 0:02:39.4]} 19. Ng4 {[%clk 0:02:14.9]} 19...
Nd3 {[%clk 0:02:37.9]} 20. Rxe6 {[%clk 0:02:14.6]} 20... h5 {[%clk 0:01:38.7]}
21. Ne3 {[%clk 0:02:02.8]} 21... N3f4 {[%clk 0:01:12.8]} 22. Nf5 {[%clk
0:01:52.1]} 22... Kh8 {[%clk 0:00:46.2]} 23. Nxe7 {[%clk 0:01:44.3]} 23... Nxe6
{[%clk 0:00:45.5]} 24. Nxc8 {[%clk 0:01:18.1]} 24... Nef4 {[%clk 0:00:45.8]} 25.
Nxa7 {[%clk 0:01:05.9]} 25... Be2 {[%clk 0:00:45.6]} 26. Qc2 {[%clk 0:00:58.8]}
26... Bxf3 {[%clk 0:00:40]} 27. gxf3 {[%clk 0:00:57.1]} 27... f5 {[%clk
0:00:39.5]} 28. Kh2 {[%clk 0:00:53]} 28... Qh4 {[%clk 0:00:21.8]} 29. Kg1 {[%clk
0:00:51.1]} 29... Qxh3 {[%clk 0:00:18.5]} 30. Bxf4 {[%clk 0:00:41.8]} 30... Nxf4
{[%clk 0:00:19.4]} 31. Qxf5 {[%clk 0:00:33]} 31... Qg2# {[%clk 0:00:19.3]} 0-1

[Event "Late-Titled-Tuesday-Blitz-October-03-2023"]
[Site "Chess.com"]
[Date "2023.10.03"]
[Round "11"]
[White "geordie_derraugh"]
[Black "dorpato"]
[Result "1-0"]
[WhiteElo "2454"]
[BlackElo "2067"]
[TimeControl "180+1"]
[EndTime "16:01:01 PDT"]
[Termination "geordie_derraugh won by resignation"]

1. e4 {[%clk 0:03:00.9]} 1... c5 {[%clk 0:02:58.6]} 2. c3 {[%clk 0:02:59.6]}
2... Nf6 {[%clk 0:02:57.7]} 3. e5 {[%clk 0:02:59.3]} 3... Nd5 {[%clk 0:02:58.4]}
4. Nf3 {[%clk 0:02:59]} 4... Nc6 {[%clk 0:02:57.2]} 5. d4 {[%clk 0:02:58.7]}
5... cxd4 {[%clk 0:02:56.6]} 6. cxd4 {[%clk 0:02:58.3]} 6... d6 {[%clk
0:02:56.9]} 7. Bc4 {[%clk 0:02:57.3]} 7... Nb6 {[%clk 0:02:57.2]} 8. Bb3 {[%clk
0:02:56.4]} 8... dxe5 {[%clk 0:02:57.1]} 9. dxe5 {[%clk 0:02:56.1]} 9... Qxd1+
{[%clk 0:02:57.2]} 10. Kxd1 {[%clk 0:02:56.2]} 10... Bg4 {[%clk 0:02:57.5]} 11.
Bf4 {[%clk 0:02:54.9]} 11... Nd4 {[%clk 0:02:49.1]} 12. Nd2 {[%clk 0:02:51.5]}
12... e6 {[%clk 0:02:32.5]} 13. Rc1 {[%clk 0:02:38.2]} 13... Bb4 {[%clk
0:02:28.9]} 14. Rc7 {[%clk 0:02:27.7]} 14... Bxd2 {[%clk 0:02:21.8]} 15. Kxd2
{[%clk 0:02:26.3]} 15... Nxb3+ {[%clk 0:02:11.3]} 16. axb3 {[%clk 0:02:24.4]}
16... Nd5 {[%clk 0:02:11.4]} 17. Rc4 {[%clk 0:02:20.7]} 17... b5 {[%clk
0:02:09.9]} 18. Rd4 {[%clk 0:02:19.4]} 18... O-O-O {[%clk 0:02:05.1]} 19. Bg5
{[%clk 0:02:04.3]} 19... f6 {[%clk 0:01:58.2]} 20. Rxg4 {[%clk 0:02:00.3]} 20...
fxg5 {[%clk 0:01:35.2]} 21. Rxg5 {[%clk 0:02:01.2]} 21... g6 {[%clk 0:01:28.7]}
22. Kc1 {[%clk 0:01:56.1]} 22... Kb7 {[%clk 0:01:26.7]} 23. Nd4 {[%clk
0:01:52.5]} 23... Rhe8 {[%clk 0:01:15.2]} 24. Nxb5 {[%clk 0:01:51.8]} 24... Kb6
{[%clk 0:01:12.8]} 25. Nd6 {[%clk 0:01:49]} 25... Re7 {[%clk 0:01:13.1]} 26. Kb1
{[%clk 0:01:43.1]} 26... Rc7 {[%clk 0:01:01.2]} 27. Rg4 {[%clk 0:01:42.7]} 27...
a5 {[%clk 0:01:00.4]} 28. Ra4 {[%clk 0:01:28.1]} 28... Ra8 {[%clk 0:00:30.8]}
29. Rc4 {[%clk 0:01:18.1]} 29... Rd7 {[%clk 0:00:25.5]} 30. Rhc1 {[%clk
0:01:16]} 30... Nb4 {[%clk 0:00:11.9]} 31. Rc5 {[%clk 0:01:16.1]} 31... Nd3
{[%clk 0:00:11.4]} 32. Rb5+ {[%clk 0:01:16.5]} 32... Ka6 {[%clk 0:00:09.9]} 33.
Rc6+ {[%clk 0:01:15.9]} 33... Ka7 {[%clk 0:00:10.2]} 34. Rxa5+ {[%clk
0:01:16.2]} 34... Kb8 {[%clk 0:00:10]} 35. Rb6+ {[%clk 0:01:11.6]} 35... Kc7
{[%clk 0:00:10.1]} 36. Rb7+ {[%clk 0:01:12]} 36... Kc6 {[%clk 0:00:10.2]} 37.
Rxa8 {[%clk 0:01:11.4]} 37... Rxb7 {[%clk 0:00:09.5]} 38. Nxb7 {[%clk
0:01:12.3]} 38... Kxb7 {[%clk 0:00:10.2]} 39. Rh8 {[%clk 0:01:13]} 39... h5
{[%clk 0:00:09.8]} 40. Re8 {[%clk 0:01:11.5]} 40... Nxe5 {[%clk 0:00:07.7]} 41.
Rxe6 {[%clk 0:01:11.2]} 41... Ng4 {[%clk 0:00:07.3]} 42. f3 {[%clk 0:01:11.6]}
42... Nxh2 {[%clk 0:00:07.2]} 43. Re1 {[%clk 0:01:10.2]} 43... g5 {[%clk
0:00:04.2]} 44. Rh1 {[%clk 0:01:09.9]} 1-0

[Event "Late-Titled-Tuesday-Blitz-October-03-2023"]
[Site "Chess.com"]
[Date "2023.10.03"]
[Round "11"]
[White "Veiso"]
[Black "pedromartinez91"]
[Result "1-0"]
[WhiteElo "2498"]
[BlackElo "2555"]
[TimeControl "180+1"]
[EndTime "16:01:05 PDT"]
[Termination "Veiso won by checkmate"]

1. e4 {[%clk 0:02:51.3]} 1... d5 {[%clk 0:02:59.3]} 2. exd5 {[%clk 0:02:51.3]}
2... Qxd5 {[%clk 0:03:00.2]} 3. Nc3 {[%clk 0:02:51.8]} 3... Qd8 {[%clk
0:03:00.4]} 4. Bc4 {[%clk 0:02:50.8]} 4... g6 {[%clk 0:03:00.3]} 5. Nf3 {[%clk
0:02:49.3]} 5... Bg7 {[%clk 0:03:00.5]} 6. h3 {[%clk 0:02:47.6]} 6... Nf6 {[%clk
0:03:00.6]} 7. d4 {[%clk 0:02:47.4]} 7... O-O {[%clk 0:03:01]} 8. Be3 {[%clk
0:02:46.4]} 8... Nc6 {[%clk 0:03:01.2]} 9. Qd2 {[%clk 0:02:45.8]} 9... a6 {[%clk
0:02:58.3]} 10. O-O-O {[%clk 0:02:43.8]} 10... b5 {[%clk 0:02:58.5]} 11. Bd3
{[%clk 0:02:39.7]} 11... Nb4 {[%clk 0:02:58.5]} 12. Kb1 {[%clk 0:02:35.3]} 12...
Nxd3 {[%clk 0:02:57.8]} 13. Qxd3 {[%clk 0:02:35.4]} 13... Bf5 {[%clk 0:02:58]}
14. Qe2 {[%clk 0:02:28.7]} 14... Nd5 {[%clk 0:02:53.6]} 15. Nxd5 {[%clk
0:02:20]} 15... Qxd5 {[%clk 0:02:54.5]} 16. Bf4 {[%clk 0:02:18.1]} 16... c5
{[%clk 0:02:45.3]} 17. Be5 {[%clk 0:02:05.3]} 17... cxd4 {[%clk 0:02:26.2]} 18.
Bxg7 {[%clk 0:02:01.6]} 18... d3 {[%clk 0:02:26.1]} 19. cxd3 {[%clk 0:01:49.4]}
19... Kxg7 {[%clk 0:02:26.1]} 20. g4 {[%clk 0:01:42.6]} 20... Be6 {[%clk
0:02:26]} 21. b3 {[%clk 0:01:22.2]} 21... a5 {[%clk 0:02:21.9]} 22. Rhe1 {[%clk
0:01:12.5]} 22... a4 {[%clk 0:02:21.3]} 23. b4 {[%clk 0:01:12.4]} 23... a3
{[%clk 0:02:17.5]} 24. Qe5+ {[%clk 0:01:10.2]} 24... Kg8 {[%clk 0:02:17.6]} 25.
Qxd5 {[%clk 0:01:08]} 25... Bxd5 {[%clk 0:02:18.5]} 26. Nd4 {[%clk 0:00:40.5]}
26... Ra4 {[%clk 0:02:17.2]} 27. Nc2 {[%clk 0:00:40.1]} 27... Rc8 {[%clk
0:02:16]} 28. Rd2 {[%clk 0:00:32.6]} 28... e6 {[%clk 0:02:13.3]} 29. Ka1 {[%clk
0:00:20]} 29... g5 {[%clk 0:02:06.7]} 30. Rb1 {[%clk 0:00:18.5]} 30... Rc3
{[%clk 0:02:05.4]} 31. Ne3 {[%clk 0:00:17.6]} 31... Kg7 {[%clk 0:02:01.3]} 32.
Nxd5 {[%clk 0:00:16.6]} 32... exd5 {[%clk 0:02:02.2]} 33. Rb3 {[%clk 0:00:17]}
33... Rc6 {[%clk 0:01:47.7]} 34. Kb1 {[%clk 0:00:13.4]} 34... Ra7 {[%clk
0:01:42.5]} 35. Rc2 {[%clk 0:00:11.7]} 35... Rf6 {[%clk 0:01:36.9]} 36. d4
{[%clk 0:00:11.1]} 36... Rf4 {[%clk 0:01:35.7]} 37. Rd2 {[%clk 0:00:07.9]} 37...
Kf6 {[%clk 0:01:35.7]} 38. Kc2 {[%clk 0:00:06.4]} 38... Ke6 {[%clk 0:01:30]} 39.
Kd1 {[%clk 0:00:05.5]} 39... Kd6 {[%clk 0:01:29.7]} 40. Ke2 {[%clk 0:00:04.9]}
40... h5 {[%clk 0:01:28.2]} 41. f3 {[%clk 0:00:04.8]} 41... h4 {[%clk
0:01:27.5]} 42. Kf2 {[%clk 0:00:04.7]} 42... f5 {[%clk 0:01:27.5]} 43. gxf5
{[%clk 0:00:03]} 43... Rxf5 {[%clk 0:01:27.7]} 44. Re3 {[%clk 0:00:03.3]} 44...
Ra4 {[%clk 0:01:25.8]} 45. Rde2 {[%clk 0:00:02.8]} 45... Rxb4 {[%clk 0:01:21.6]}
46. Re6+ {[%clk 0:00:02.8]} 46... Kc7 {[%clk 0:01:22.3]} 47. Re7+ {[%clk
0:00:03.2]} 47... Kb6 {[%clk 0:01:22.9]} 48. R2e6+ {[%clk 0:00:03.4]} 48... Ka5
{[%clk 0:01:19.8]} 49. Ra7# {[%clk 0:00:04]} 1-0